[Event "10th Cesme Open-A 2024"]
[Site "Cesme"]
[Date "2024.06.28"]
[Round "7"]
[White "Ozsakallioglu, Okan"]
[Black "Eke, Salih"]
[Result "0-1"]
[ECO "B12"]
[WhiteElo "2402"]
[BlackElo "2251"]
[Annotator "RC"]
[PlyCount "114"]
[EventDate "2024.06.23"]
[EventType "swiss"]
[EventCountry "TUR"]
[SourceTitle "playchess.com"]
[Source "ChessBase"]
[SourceQuality "1"]
[TimeControl "5400+30"]

1. e4 {[%emt 0:13:00]} c6 {[%emt 0:01:00]} 2. d4 {[%emt 0:00:30]} d5 {[%emt 0:00:30]} 3. e5 {[%emt 0:00:30]} Bf5 {[%emt 0:00:30]} 4. h4 {[%emt 0:00:00]} h5 {[%emt 0:00:00]} 5. c4 {[%emt 0:02:00]} e6 {[%emt 0:05:00]} 6. Nc3 {[%emt 0:01:30]} Nd7 {[%emt 0:01:30]} 7. Nf3 {[%emt 0:09:30]} Nh6 {[%emt 0:09:30]} 8. Bxh6 {[%emt 0:01:30]} Rxh6 {[%emt 0:01:30]} 9. Bd3 {[%emt 0:08:30]} Bg4 {[%emt 0:03:30]} 10. cxd5 {[%emt 0:08:30]} cxd5 {[%emt 0:05:30]} 11. Rc1 {[%emt 0:04:30]} a6 {[%emt 0:13:30]} 12. Be2 {[%emt 0:03:30]} Be7 {[%emt 0:02:30]} 13. g3 {[%emt 0:00:30]} b5 {[%emt 0:05:30]} 14. a4 {[%emt 0:00:30]} b4 {[%emt 0:01:30]} 15. Nb1 {[%emt 0:00:30]} Kf8 {[%emt 0:01:30]} 16. Nbd2 {[%emt 0:01:30]} g6 {[%emt 0:07:30]} 17. Rc6 {[%emt 0:00:30]} Nb8 {[%emt 0:00:30]} 18. Rc1 {[%emt 0:00:30]} Kg7 {[%emt 0:01:30]} 19. O-O {[%emt 0:04:30]} Rh8 {[%emt 0:04:30]} 20. Kg2 {[%emt 0:04:30]} Bf5 {[%emt 0:04:30]} 21. Nb3 {[%emt 0:04:30]} Nd7 {[%emt 0:00:30]} 22. a5 {[%emt 0:00:30]} Qb8 {[%emt 0:00:30]} 23. Bd3 {[%emt 0:01:30]} Bxd3 {[%emt 0:01:30]} 24. Qxd3 {[%emt 0:00:30]} Qb7 {[%emt 0:00:30]} 25. Rc2 {[%emt 0:00:30]} Rhc8 {[%emt 0:04:30]} 26. Rfc1 {[%emt 0:00:30]} Rxc2 {[%emt 0:00:30]} 27. Qxc2 {[%emt 0:00:30]} Kf8 {[%emt 0:00:00]} 28. Ne1 {[%emt 0:05:30]} Ke8 {[%emt 0:01:00]} 29. Nd3 {[%emt 0:00:30]} Kd8 {[%emt 0:01:30]} 30. Ndc5 {[%emt 0:02:30]} Nxc5 {[%emt 0:00:30]} 31. Nxc5 {[%emt 0:02:30]} Qb5 {[%emt 0:00:30]} 32. Nb3 {[%emt 0:00:30]} Qb7 {[%emt 0:00:00]} 33. Qc6 {[%emt 0:00:53]} Qxc6 {[%emt 0:04:42]} 34. Rxc6 {[%emt 0:00:42]} Kd7 {[%emt 0:00:07]} 35. Rb6 {[%emt 0:00:50]} Kc7 {[%emt 0:00:14]} 36. Nc5 {[%emt 0:01:56]} Bxc5 {[%emt 0:01:02]} 37. dxc5 {[%emt 0:00:01]} d4 {[%emt 0:09:07]} 38. Kf1 {[%emt 0:10:22]} Rd8 {[%emt 0:00:41]} 39. Rd6 {[%emt 0:03:17]} Rb8 {[%emt 0:00:01]} 40. Rxa6 {[%emt 0:01:37]} Rb5 {[%emt 0:00:02]} 41. Ra7+ {[%emt 0:00:25]} Kc6 {[%emt 0:00:01]} 42. Ra8 {[%emt 0:02:28]} Kxc5 {[%emt 0:03:10]} 43. a6 {[%emt 0:01:45]} Kb6 {[%emt 0:00:47]} 44. a7 {[%emt 0:00:15]} Rxe5 {[%emt 0:00:34]} 45. Rb8+ {[%emt 0:00:35]} Kxa7 {[%emt 0:00:30]} 46. Rxb4 {[%emt 0:00:00]} Re4 {[%emt 0:02:04]} 47. f3 {[%emt 0:01:17]} Re3 {[%emt 0:00:06]} 48. Rxd4 {[%emt 0:00:36]} Rxf3+ {[%emt 0:00:42]} 49. Ke2 {[%emt 0:00:04]} Rxg3 {[%emt 0:02:40]} 50. Rd7+ {[%emt 0:00:01]} Kb6 {[%emt 0:00:25]} 51. Rxf7 {[%emt 0:00:05]} Kc5 {[%emt 0:00:25]} 52. b4+ {[%emt 0:00:07]} Kxb4 {[%emt 0:02:32]} 53. Rf6 {[%emt 0:01:26]} Kc5 {[%emt 0:01:00]} 54. Kf2 {[%emt 0:00:47]} Rg4 {[%emt 0:00:10]} 55. Rxe6 {[%emt 0:00:17]} Kd5 {[%emt 0:00:30]} 56. Re1 {[%emt 0:00:00]} Rxh4 {[%emt 0:00:40]} 57. Rg1 {[%emt 0:00:14]} Rf4+ {[%emt 0:00:00]} 0-1

[Event "10th Cesme Open-A 2024"]
[Site "Cesme"]
[Date "2024.06.28"]
[Round "7"]
[White "Pacher, Milan"]
[Black "Bicer, Atakan Mert"]
[Result "0-1"]
[ECO "B10"]
[WhiteElo "2387"]
[BlackElo "2313"]
[Annotator "RC"]
[PlyCount "52"]
[EventDate "2024.06.23"]
[EventType "swiss"]
[EventCountry "TUR"]
[SourceTitle "playchess.com"]
[Source "ChessBase"]
[SourceQuality "1"]
[TimeControl "5400+30"]

1. e4 {[%emt 0:01:00]} c6 {[%emt 0:01:00]} 2. c4 {[%emt 0:00:00]} d5 {[%emt 0:00:30]} 3. exd5 {[%emt 0:00:00]} cxd5 {[%emt 0:00:30]} 4. cxd5 {[%emt 0:00:30]} Nf6 {[%emt 0:00:00]} 5. Qa4+ {[%emt 0:00:00]} Nbd7 {[%emt 0:00:00]} 6. Nc3 {[%emt 0:00:00]} g6 {[%emt 0:01:30]} 7. Nf3 {[%emt 0:00:30]} Bg7 {[%emt 0:00:00]} 8. Bc4 {[%emt 0:00:00]} O-O {[%emt 0:00:00]} 9. d3 {[%emt 0:00:00]} a6 {[%emt 0:02:30]} 10. Qa3 {[%emt 0:00:00]} Nb6 {[%emt 0:07:30]} 11. Qb3 {[%emt 0:00:00]} Bf5 {[%emt 0:13:30]} 12. O-O {[%emt 0:03:30]} Qc7 {[%emt 0:13:30]} 13. Re1 {[%emt 0:03:30]} Rac8 {[%emt 0:03:30]} 14. Bf4 {[%emt 0:07:30]} Qxf4 {[%emt 0:04:30]} 15. Qxb6 {[%emt 0:00:30]} Nd7 {[%emt 0:01:30]} 16. Qxb7 {[%emt 0:03:30]} Rb8 {[%emt 0:01:30]} 17. Qxa6 {[%emt 0:00:00]} Rxb2 {[%emt 0:00:30]} 18. Qa3 {[%emt 0:03:00]} Rfb8 {[%emt 0:10:30]} 19. Re3 {[%emt 0:19:30]} Ne5 {[%emt 0:03:30]} 20. Nd1 {[%emt 0:17:30]} Rxf2 {[%emt 0:14:48]} 21. Kxf2 {[%emt 0:00:30]} Ng4+ {[%emt 0:00:30]} 22. Ke2 {[%emt 0:00:00]} Nxe3 {[%emt 0:00:12]} 23. Nxe3 {[%emt 0:00:00]} Bxa1 {[%emt 0:00:30]} 24. Qxe7 {[%emt 0:00:00]} Bf6 {[%emt 0:00:30]} 25. Qc5 {[%emt 0:04:00]} Rb2+ {[%emt 0:01:21]} 26. Ke1 {[%emt 0:00:00]} Bg5 {[%emt 0:01:07]} 0-1

[Event "10th Cesme Open-A 2024"]
[Site "Cesme"]
[Date "2024.06.28"]
[Round "7"]
[White "Domalchuk-Jonasson, Aleksandr"]
[Black "Zakirov, Musa"]
[Result "1/2-1/2"]
[ECO "A22"]
[WhiteElo "2380"]
[BlackElo "2112"]
[Annotator "RC"]
[PlyCount "82"]
[EventDate "2024.06.23"]
[EventType "swiss"]
[EventCountry "TUR"]
[SourceTitle "playchess.com"]
[Source "ChessBase"]
[SourceQuality "1"]
[TimeControl "5400+30"]

1. c4 {[%emt 0:01:00]} e5 {[%emt 0:01:00]} 2. g3 {[%emt 0:00:00]} Nf6 {[%emt 0:01:30]} 3. Bg2 {[%emt 0:00:00]} Bc5 {[%emt 0:00:30]} 4. Nc3 {[%emt 0:00:30]} O-O {[%emt 0:00:30]} 5. Nf3 {[%emt 0:00:00]} e4 {[%emt 0:03:30]} 6. Ng5 {[%emt 0:00:00]} Bxf2+ {[%emt 0:00:30]} 7. Kxf2 {[%emt 0:00:30]} Ng4+ {[%emt 0:00:30]} 8. Kg1 {[%emt 0:00:30]} Qxg5 {[%emt 0:00:30]} 9. Bxe4 {[%emt 0:00:00]} f5 {[%emt 0:21:30]} 10. d4 {[%emt 0:15:00]} Qd8 {[%emt 0:09:30]} 11. Bd5+ {[%emt 0:05:30]} Kh8 {[%emt 0:00:30]} 12. Bf4 {[%emt 0:02:30]} Nc6 {[%emt 0:01:30]} 13. Bf3 {[%emt 0:13:30]} d6 {[%emt 0:03:30]} 14. Qd2 {[%emt 0:01:30]} h6 {[%emt 0:01:30]} 15. Rf1 {[%emt 0:04:30]} Nf6 {[%emt 0:08:30]} 16. h3 {[%emt 0:04:30]} Ne7 {[%emt 0:04:30]} 17. Rh2 {[%emt 0:09:30]} Rb8 {[%emt 0:07:30]} 18. d5 {[%emt 0:05:30]} a6 {[%emt 0:02:30]} 19. a4 {[%emt 0:05:30]} Nh7 {[%emt 0:02:30]} 20. Qd4 {[%emt 0:02:30]} Kg8 {[%emt 0:02:30]} 21. c5 {[%emt 0:11:14]} b6 {[%emt 0:10:48]} 22. cxd6 {[%emt 0:02:11]} cxd6 {[%emt 0:00:30]} 23. Qb4 {[%emt 0:00:30]} Rf6 {[%emt 0:00:00]} 24. Rhf2 {[%emt 0:13:06]} Ng6 {[%emt 0:00:25]} 25. Be3 {[%emt 0:00:10]} Ne5 {[%emt 0:03:27]} 26. Bg2 {[%emt 0:00:03]} Bd7 {[%emt 0:09:20]} 27. Qd4 {[%emt 0:02:29]} b5 {[%emt 0:00:31]} 28. axb5 {[%emt 0:00:41]} axb5 {[%emt 0:00:04]} 29. b3 {[%emt 0:00:44]} Ng5 {[%emt 0:02:47]} 30. Kh2 {[%emt 0:01:05]} Qe8 {[%emt 0:00:57]} 31. Bf4 {[%emt 0:00:06]} b4 {[%emt 0:00:38]} 32. Na2 {[%emt 0:00:18]} Bb5 {[%emt 0:00:39]} 33. Nxb4 {[%emt 0:00:21]} Qh5 {[%emt 0:00:18]} 34. Bxe5 {[%emt 0:00:57]} dxe5 {[%emt 0:00:30]} 35. Qxe5 {[%emt 0:00:30]} Re8 {[%emt 0:00:00]} 36. Qf4 {[%emt 0:00:53]} Bxe2 {[%emt 0:02:15]} 37. Re1 {[%emt 0:00:21]} Re4 {[%emt 0:00:41]} 38. Bxe4 {[%emt 0:01:19]} fxe4 {[%emt 0:00:30]} 39. Kg1 {[%emt 0:00:30]} Qxh3 {[%emt 0:00:30]} 40. Qb8+ {[%emt 0:00:30]} Kh7 {[%emt 0:00:30]} 41. Rxf6 {[%emt 0:00:30]} Bf3 {[%emt 0:00:30]} 1/2-1/2

[Event "10th Cesme Open-A 2024"]
[Site "Cesme"]
[Date "2024.06.28"]
[Round "7"]
[White "Haznedaroglu, Kivanc"]
[Black "Ozcan, Kaan"]
[Result "1-0"]
[ECO "C22"]
[WhiteElo "2359"]
[BlackElo "2227"]
[Annotator "RC"]
[PlyCount "75"]
[EventDate "2024.06.23"]
[EventType "swiss"]
[EventCountry "TUR"]
[SourceTitle "playchess.com"]
[Source "ChessBase"]
[SourceQuality "1"]
[TimeControl "5400+30"]

1. e4 {[%emt 0:01:00]} e5 {[%emt 0:01:00]} 2. d4 {[%emt 0:00:00]} exd4 {[%emt 0:00:30]} 3. Qxd4 {[%emt 0:00:00]} Nc6 {[%emt 0:00:30]} 4. Qd3 {[%emt 0:00:30]} Nf6 {[%emt 0:00:30]} 5. Nc3 {[%emt 0:00:30]} Bb4 {[%emt 0:00:30]} 6. Bd2 {[%emt 0:00:30]} O-O {[%emt 0:03:30]} 7. O-O-O {[%emt 0:00:30]} d6 {[%emt 0:00:30]} 8. Qg3 {[%emt 0:07:30]} Re8 {[%emt 0:00:30]} 9. f3 {[%emt 0:00:30]} Be6 {[%emt 0:05:30]} 10. Nge2 {[%emt 0:01:30]} a6 {[%emt 0:04:30]} 11. h4 {[%emt 0:04:30]} Nh5 {[%emt 0:03:30]} 12. Qh2 {[%emt 0:02:30]} Ne5 {[%emt 0:05:30]} 13. Nd4 {[%emt 0:00:30]} c5 {[%emt 0:10:30]} 14. Nxe6 {[%emt 0:00:30]} fxe6 {[%emt 0:01:30]} 15. Be2 {[%emt 0:00:30]} Nf6 {[%emt 0:01:30]} 16. h5 {[%emt 0:00:30]} b5 {[%emt 0:05:30]} 17. g4 {[%emt 0:08:30]} Rf8 {[%emt 0:04:30]} 18. g5 {[%emt 0:05:30]} Ne8 {[%emt 0:00:30]} 19. Qh3 {[%emt 0:09:30]} Nc7 {[%emt 0:03:30]} 20. f4 {[%emt 0:00:30]} Nc4 {[%emt 0:04:30]} 21. Bxc4 {[%emt 0:00:30]} bxc4 {[%emt 0:00:30]} 22. f5 {[%emt 0:00:30]} d5 {[%emt 0:05:30]} 23. exd5 {[%emt 0:10:30]} exf5 {[%emt 0:04:30]} 24. g6 {[%emt 0:02:30]} h6 {[%emt 0:02:30]} 25. Qf1 {[%emt 0:00:30]} Nb5 {[%emt 0:06:30]} 26. d6 {[%emt 0:10:30]} Qa5 {[%emt 0:09:31]} 27. Qxc4+ {[%emt 0:03:30]} Kh8 {[%emt 0:00:05]} 28. d7 {[%emt 0:10:30]} Nxc3 {[%emt 0:05:53]} 29. Bxc3 {[%emt 0:01:30]} Bxc3 {[%emt 0:00:10]} 30. Qxc3 {[%emt 0:02:09]} Qxa2 {[%emt 0:03:10]} 31. b3 {[%emt 0:00:35]} c4 {[%emt 0:01:07]} 32. b4 {[%emt 0:01:48]} a5 {[%emt 0:02:24]} 33. b5 {[%emt 0:00:12]} Rad8 {[%emt 0:02:20]} 34. Rhe1 {[%emt 0:01:12]} Qa4 {[%emt 0:01:32]} 35. Re7 {[%emt 0:00:25]} Rg8 {[%emt 0:00:04]} 36. Rde1 {[%emt 0:00:51]} Qxb5 {[%emt 0:03:17]} 37. Rxg7 {[%emt 0:00:30]} Rxg7 {[%emt 0:00:30]} 38. Re7 {[%emt 0:00:00]} 1-0

[Event "10th Cesme Open-A 2024"]
[Site "Cesme"]
[Date "2024.06.28"]
[Round "7"]
[White "Ebrahimi Herab, Hamidreza"]
[Black "Gholami, Aryan"]
[Result "1-0"]
[ECO "E21"]
[WhiteElo "2333"]
[BlackElo "2481"]
[Annotator "TA"]
[PlyCount "115"]
[EventDate "2024.06.23"]
[EventType "swiss"]
[EventCountry "TUR"]
[SourceTitle "playchess.com"]
[Source "ChessBase"]
[SourceQuality "1"]
[TimeControl "5400+30"]

{[%evp 21,115,-4,13,25,51,7,16,-8,22,8,18,6,20,1,16,5,39,23,65,47,52,58,43,25,29,13,32,0,21,6,72,71,76,64,57,60,82,82,82,74,168,173,176,155,150,153,174,164,191,183,240,245,236,182,199,148,172,161,289,276,306,305,522,503,488,456,446,415,427,375,630,565,492,470,1008,835,1230,1160,1163,1114,1403,1242,1646,1615,1616,1566,1328,1149,29973,29974,29959,29962,29984,29985,29985,29986]} 1. d4 {[%emt 0:01:00]} Nf6 {[%emt 0:01:00]} 2. c4 {[%emt 0:00:30]} e6 {[%emt 0:00:30]} 3. Nc3 {[%emt 0:00:30]} Bb4 {[%emt 0:00:30]} 4. Bd2 {[%emt 0:01:30]} O-O {[%emt 0:02:30]} 5. Nf3 {[%emt 0:00:30]} c5 {[%emt 0:00:30]} 6. a3 {[%emt 0:05:30]} Bxc3 {[%emt 0:03:30]} 7. Bxc3 {[%emt 0:00:00]} Ne4 {[%emt 0:01:30]} 8. Rc1 {[%emt 0:03:00]} b6 {[%emt 0:01:30]} 9. e3 {[%emt 0:03:30]} Bb7 {[%emt 0:00:30]} 10. Be2 {[%emt 0:05:30]} d6 {[%emt 0:02:30]} 11. O-O {[%emt 0:00:30]} Nd7 {[%emt 0:00:00]} 12. Be1 {[%emt 0:04:30]} f5 {[%emt 0:02:00]} 13. dxc5 {[%emt 0:09:30]} dxc5 {[%emt 0:04:30]} 14. Nd2 {[%emt 0:05:30] The position is equal.} Nef6 {[%emt 0:20:30]} 15. f3 {[%emt 0:02:30]} Qe7 {[%emt 0:01:30]} 16. Qc2 {[%emt 0:05:30]} Rad8 {[%emt 0:01:30]} 17. Bf2 {[%emt 0:02:30]} Nh5 {[%emt 0:14:30]} 18. Rfd1 {[%emt 0:05:30]} Qg5 {[%emt 0:01:30]} 19. Nf1 {[%emt 0:01:30]} f4 {[%emt 0:03:30]} 20. e4 $1 {[%emt 0:04:30]} Rf6 {[%emt 0:06:30]} 21. h4 $1 {[%emt 0:08:30]} Qe5 {[%emt 0:02:30]} 22. Qc3 {[%emt 0:00:30]} Qc7 {[%emt 0:00:30]} 23. Rd2 {[%emt 0:01:30]} e5 {[%emt 0:04:30]} 24. Rcd1 {[%emt 0:00:30]} Bc6 {[%emt 0:00:00]} 25. Rd3 {[%emt 0:01:30]} g6 {[%emt 0:01:00]} (25... Re8 $11 {keeps the balance.}) 26. Nh2 $1 $16 {[%emt 0:05:30]} Re6 {[%emt 0:08:02]} 27. Ng4 {[%emt 0:02:30]} Rde8 {[%emt 0:01:51]} 28. b4 {[%emt 0:01:08][%cal Bb2b4,Bb4b5][%mdl 32]} R8e7 {[%emt 0:00:40] Black is now going downhill.} 29. b5 {[%emt 0:05:11][%cal Oc3d2] And now Qd2! would win.} Bb7 {[%emt 0:00:30]} 30. Qd2 {[%emt 0:00:00]} Nhf6 {[%emt 0:00:52] [#]} (30... Nf8 $16) 31. h5 $1 $18 {[%emt 0:01:06][%mdl 512]} Bc8 {[%emt 0:03:01]} 32. Nxf6+ {[%emt 0:01:46]} Nxf6 {[%emt 0:00:09] [#]} 33. Bh4 $1 {[%emt 0:00:00]} Re8 {[%emt 0:00:50]} 34. h6 {[%emt 0:02:25]} g5 {[%emt 0:04:02]} 35. Bxg5 {[%emt 0:00:15]} Nh5 {[%emt 0:00:20]} (35... Qf7 {was necessary.} 36. Qe1 Qh5) 36. Rd8 {[%emt 0:01:33]} Ng3 {[%emt 0:00:34]} 37. Bf1 {[%emt 0:01:34]} Qf7 {[%emt 0:00:26]} 38. Rxe8+ {[%emt 0:00:02]} (38. Qd5 $18) 38... Rxe8 $16 {[%emt 0:00:04]} 39. Qd6 {[%emt 0:00:00]} Be6 {[%emt 0:01:28]} (39... Nxf1 $142 40. Kxf1 (40. Rxf1 Qd7 $18) 40... Qxc4+ 41. Kg1 Qe6) 40. Bd3 $18 {[%emt 0:02:05]} ({Not} 40. Qxe5 Bc8 41. Qb2 (41. Qxf4 Qxf4 42. Bxf4 Nxf1 $18) 41... Nh5 $18) 40... Bd7 {[%emt 0:00:02]} ({Don't blunder} 40... Qh5 $2 41. Qxe5 Qf7 42. Bxf4 $18) 41. Kf2 {[%emt 0:01:33]} Re6 $2 {[%emt 0:02:55]} (41... Bc8 42. Bd8 Qf8 43. Qxf8+ Kxf8) 42. Qb8+ {[%emt 0:00:21]} Be8 {[%emt 0:00:52]} 43. Bf1 {[%emt 0:05:35]} Qh5 {[%emt 0:03:31]} 44. Qc8 {[%emt 0:00:25] Active counter play!} Qf7 {[%emt 0:00:33]} 45. Rd8 {[%emt 0:01:17]} Nxf1 $2 {[%emt 0:01:40]} (45... Nh5 46. Kg1 Ng3) 46. Kxf1 {[%emt 0:00:30]} Kf8 {[%emt 0:00:00]} 47. Rd5 {[%emt 0:01:00]} Qg6 {[%emt 0:01:42]} (47... Rg6 $142 48. Qd8 (48. Rxe5 $2 {perishes.} Qxc4+ 49. Kg1 Qd4+ 50. Kh2 Qxe5 $19) 48... Qe6) 48. a4 {[%emt 0:00:41] Black must now prevent Qd8.} Qf7 {[%emt 0:00:28]} 49. Qb8 {[%emt 0:00:22]} Kg8 {[%emt 0:01:11]} 50. Kg1 {[%emt 0:00:11]} Kf8 {[%emt 0:00:44]} 51. Rxe5 {[%emt 0:00:11]} Rxe5 {[%emt 0:00:16]} 52. Qxe5 {[%emt 0:00:06][%mdl 4096] Endgame. KQB-KQB} Kg8 {[%emt 0:00:22] Repels Qh8+} 53. Bxf4 {[%emt 0:00:07]} Bd7 {[%emt 0:00:00]} 54. Qd6 {[%emt 0:01:25]} Be6 {[%emt 0:00:06]} 55. Qb8+ {[%emt 0:00:01] White mates.} Qf8 {[%emt 0:00:36]} 56. Qxa7 {[%emt 0:00:30]} Bxc4 {[%emt 0:00:00] [#]} 57. a5 $1 {[%emt 0:00:26]} bxa5 {[%emt 0:00:25] [#]} (57... Bxb5 58. axb6) 58. b6 $1 {[%emt 0:00:07] Weighted Error Value: White=0.14 (very precise) /Black=0.51.  Mistake:       	White=1     	Black=7      Inaccurate:     	White=2     	Black=5      OK:         	White=10    	Black=10     Best:        	---       	Black=2      Strong:       	White=4     	---        Brilliant:      	White=1     	---} 1-0

[Event "10th Cesme Open-A 2024"]
[Site "Cesme"]
[Date "2024.06.28"]
[Round "7"]
[White "Tarlabasi, Emirhan"]
[Black "Kirilmaz, Emre"]
[Result "1-0"]
[ECO "A40"]
[WhiteElo "2303"]
[BlackElo "2195"]
[Annotator "RC"]
[PlyCount "157"]
[EventDate "2024.06.23"]
[EventType "swiss"]
[EventCountry "TUR"]
[SourceTitle "playchess.com"]
[Source "ChessBase"]
[SourceQuality "1"]
[TimeControl "5400+30"]

1. d4 {[%emt 0:01:00]} b5 {[%emt 0:04:00]} 2. e4 {[%emt 0:07:30]} Bb7 {[%emt 0:03:30]} 3. Bd3 {[%emt 0:02:30]} Nf6 {[%emt 0:03:30]} 4. Qe2 {[%emt 0:00:30]} c5 {[%emt 0:01:30]} 5. dxc5 {[%emt 0:03:30]} Na6 {[%emt 0:00:30]} 6. f3 {[%emt 0:03:30]} Nxc5 {[%emt 0:02:30]} 7. Bxb5 {[%emt 0:01:30]} e6 {[%emt 0:01:30]} 8. Nc3 {[%emt 0:08:30]} Rc8 {[%emt 0:00:00]} 9. Bd2 {[%emt 0:07:30]} Qc7 {[%emt 0:08:00]} 10. Nh3 {[%emt 0:08:30]} a6 {[%emt 0:00:30]} 11. Bd3 {[%emt 0:00:00]} Nxd3+ {[%emt 0:03:30]} 12. cxd3 {[%emt 0:01:00]} Qb6 {[%emt 0:16:30]} 13. Be3 {[%emt 0:04:30]} Bc5 {[%emt 0:04:30]} 14. Bxc5 {[%emt 0:00:30]} Rxc5 {[%emt 0:05:30]} 15. Qf2 {[%emt 0:10:30]} O-O {[%emt 0:02:30]} 16. O-O {[%emt 0:00:30]} Qc7 {[%emt 0:00:30]} 17. Rad1 {[%emt 0:08:30]} Rc8 {[%emt 0:06:30]} 18. d4 {[%emt 0:01:30]} Rc4 {[%emt 0:00:30]} 19. Rd2 {[%emt 0:00:30]} d5 {[%emt 0:01:30]} 20. e5 {[%emt 0:02:30]} Nd7 {[%emt 0:01:30]} 21. f4 {[%emt 0:00:30]} Nf8 {[%emt 0:02:30]} 22. Qe3 {[%emt 0:07:30]} Rb8 {[%emt 0:05:30]} 23. g4 {[%emt 0:05:28]} Bc8 {[%emt 0:00:30]} 24. Nf2 {[%emt 0:01:01]} Bd7 {[%emt 0:05:59]} 25. Nd3 {[%emt 0:01:27]} Rxb2 {[%emt 0:00:51]} 26. Rxb2 {[%emt 0:04:44]} Rxc3 {[%emt 0:00:27]} 27. Rc1 {[%emt 0:03:44]} Bb5 {[%emt 0:03:43]} 28. Qd2 {[%emt 0:02:47]} Rxc1+ {[%emt 0:00:42]} 29. Qxc1 {[%emt 0:00:05]} Qe7 {[%emt 0:00:33]} 30. Qc5 {[%emt 0:02:29]} Qh4 {[%emt 0:00:16]} 31. Nf2 {[%emt 0:00:09]} h5 {[%emt 0:00:07]} 32. a4 {[%emt 0:00:31]} hxg4 {[%emt 0:03:43]} 33. axb5 {[%emt 0:00:53]} g3 {[%emt 0:00:30]} 34. hxg3 {[%emt 0:00:30]} Qxg3+ {[%emt 0:00:00]} 35. Kf1 {[%emt 0:00:00]} Ng6 {[%emt 0:00:03]} 36. Qc8+ {[%emt 0:00:00]} Kh7 {[%emt 0:00:01]} 37. Qc2 {[%emt 0:00:06]} axb5 {[%emt 0:00:00]} 38. Rxb5 {[%emt 0:02:33]} Qxf4 {[%emt 0:00:21]} 39. Qd3 {[%emt 0:00:15]} Qc1+ {[%emt 0:00:00]} 40. Ke2 {[%emt 0:00:25]} Qc7 {[%emt 0:01:27]} 41. Kd2 {[%emt 0:00:49]} Kg8 {[%emt 0:01:12]} 42. Rc5 {[%emt 0:00:40]} Qd8 {[%emt 0:00:14]} 43. Kc1 {[%emt 0:00:20]} Qg5+ {[%emt 0:00:39]} 44. Kb2 {[%emt 0:00:29]} Qg2 {[%emt 0:00:00]} 45. Rc2 {[%emt 0:00:30]} Nf8 {[%emt 0:00:46]} 46. Nd1 {[%emt 0:00:40]} Qg5 {[%emt 0:00:02]} 47. Ne3 {[%emt 0:00:25]} Qe7 {[%emt 0:00:30]} 48. Qa3 {[%emt 0:00:30]} Qb7+ {[%emt 0:00:30]} 49. Qb3 {[%emt 0:00:30]} Qa7 {[%emt 0:00:30]} 50. Qb4 {[%emt 0:00:30]} Ng6 {[%emt 0:00:00]} 51. Rc8+ {[%emt 0:00:27]} Kh7 {[%emt 0:00:00]} 52. Nc2 {[%emt 0:00:53]} Nf4 {[%emt 0:00:00]} 53. Rc3 {[%emt 0:00:06]} Qa6 {[%emt 0:01:21]} 54. Qb3 {[%emt 0:00:17]} g5 {[%emt 0:00:16]} 55. Rg3 {[%emt 0:00:37]} Kg6 {[%emt 0:00:28]} 56. Nb4 {[%emt 0:00:37]} Qe2+ {[%emt 0:04:24]} 57. Qc2+ {[%emt 0:00:36]} Kh5 {[%emt 0:00:01]} 58. Qxe2+ {[%emt 0:00:53]} Nxe2 {[%emt 0:00:30]} 59. Rf3 {[%emt 0:00:00]} Nxd4 {[%emt 0:01:39]} 60. Rxf7 {[%emt 0:00:12]} g4 {[%emt 0:00:00]} 61. Kc3 {[%emt 0:00:10]} Nf3 {[%emt 0:00:01]} 62. Nd3 {[%emt 0:00:40]} Ng5 {[%emt 0:00:13]} 63. Rg7 {[%emt 0:00:52]} Kh6 {[%emt 0:00:43]} 64. Rg8 {[%emt 0:00:11]} g3 {[%emt 0:00:03]} 65. Nf4 {[%emt 0:00:09]} Nf3 {[%emt 0:00:45]} 66. Rxg3 {[%emt 0:00:40]} Nxe5 {[%emt 0:00:15]} 67. Nxe6 {[%emt 0:00:00]} Nc6 {[%emt 0:00:14]} 68. Nf4 {[%emt 0:00:25]} d4+ {[%emt 0:00:00]} 69. Kc4 {[%emt 0:00:28]} Ne7 {[%emt 0:00:15]} 70. Rg1 {[%emt 0:00:08]} Nf5 {[%emt 0:00:31]} 71. Kd5 {[%emt 0:00:30]} Nh4 {[%emt 0:00:00]} 72. Ke6 {[%emt 0:00:09]} Nf3 {[%emt 0:00:01]} 73. Rg6+ {[%emt 0:00:14]} Kh7 {[%emt 0:00:30]} 74. Rg3 {[%emt 0:00:00]} Nd2 {[%emt 0:00:03]} 75. Kf7 {[%emt 0:00:06]} Kh6 {[%emt 0:00:16]} 76. Rg6+ {[%emt 0:00:30]} Kh7 {[%emt 0:00:30]} 77. Ne6 {[%emt 0:00:00]} Nf3 {[%emt 0:00:00]} 78. Nf8+ {[%emt 0:00:18]} Kh8 {[%emt 0:00:09]} 79. Rg8# {[%emt 0:00:00]} 1-0